[Event "Delancey UK Schools 2019 U14"]
[Site "Daventry"]
[Date "2019.09.24"]
[Round "6.3"]
[White "Ismail, Mohammed Aayan"]
[Black "Clarke, Connor"]
[Result "0-1"]
[ECO "A20"]
[WhiteElo "1583"]
[BlackElo "1711"]
[Annotator "NA"]
[PlyCount "110"]
[EventDate "2019.09.24"]
[EventCountry "GBR"]
[SourceTitle "playchess.com"]
[Source "ChessBase"]
[SourceQuality "1"]
[TimeControl "40/5400+30:1800+30"]

1. c4 {[%emt 1:10:11]} Nf6 {[%emt 1:10:14]} 2. g3 {[%emt 0:00:21]} e5 {[%emt 0:00:26]} 3. Bg2 {[%emt 0:00:35]} Nc6 {[%emt 0:00:52]} 4. d3 {[%emt 0:00:36]} Bb4+ {[%emt 0:00:25]} 5. Bd2 {[%emt 0:00:22]} Bxd2+ {[%emt 0:00:29]} 6. Nxd2 {[%emt 0:00:43]} O-O {[%emt 0:00:29]} 7. Ngf3 {[%emt 0:00:27]} d6 {[%emt 0:00:26]} 8. O-O {[%emt 0:00:24]} h6 {[%emt 0:01:21]} 9. a3 {[%emt 0:00:44]} a5 {[%emt 0:00:25]} 10. Qc2 {[%emt 0:00:48]} Be6 {[%emt 0:01:36]} 11. Qc3 {[%emt 0:02:44]} Qe7 {[%emt 0:02:03]} 12. d4 {[%emt 0:01:12]} e4 {[%emt 0:02:15]} 13. Ne1 {[%emt 0:01:01]} d5 {[%emt 0:00:37]} 14. e3 {[%emt 0:00:50]} Qd7 {[%emt 0:01:22]} 15. Nc2 {[%emt 0:02:14]} Bh3 {[%emt 0:01:31]} 16. b4 {[%emt 0:00:53]} Bxg2 {[%emt 0:00:31]} 17. Kxg2 {[%emt 0:00:22]} axb4 {[%emt 0:00:39]} 18. axb4 {[%emt 0:00:29]} h5 {[%emt 0:01:21]} 19. b5 {[%emt 0:01:56]} Ne7 {[%emt 0:00:28]} 20. Qb3 {[%emt 0:02:01]} dxc4 {[%emt 0:01:53]} 21. Nxc4 {[%emt 0:01:10]} h4 {[%emt 0:01:09]} 22. Ne5 {[%emt 0:01:28]} h3+ {[%emt 0:00:48]} 23. Kh1 {[%emt 0:00:52]} Qf5 {[%emt 0:00:56]} 24. Qc4 {[%emt 0:01:34]} Ng6 {[%emt 0:00:59]} 25. f4 {[%emt 0:02:24]} exf3 {[%emt 0:01:09]} 26. Nxf3 {[%emt 0:00:55]} Ng4 {[%emt 0:02:14]} 27. Nd2 {[%emt 0:01:18]} Rxa1 {[%emt 0:01:50]} 28. Nxa1 {[%emt 0:00:07]} Qg5 {[%emt 0:00:36]} 29. Nc2 {[%emt 0:03:00]} Nxe3 {[%emt 0:00:30]} 30. Nxe3 {[%emt 0:00:48]} Qxe3 {[%emt 0:00:30]} 31. Nf3 {[%emt 0:00:30]} Ra8 {[%emt 0:01:50]} 32. Qc1 {[%emt 0:01:24]} Qe4 {[%emt 0:01:39]} 33. Qb1 {[%emt 0:00:29]} Qd5 {[%emt 0:00:40]} 34. Rf2 {[%emt 0:00:43]} Ra3 {[%emt 0:00:33]} 35. Qf1 {[%emt 0:00:48]} Rb3 {[%emt 0:00:37]} 36. Kg1 {[%emt 0:00:33]} Qxb5 {[%emt 0:00:32]} 37. Qxb5 {[%emt 0:00:35]} Rxb5 {[%emt 0:00:24]} 38. Rc2 {[%emt 0:00:27]} c6 {[%emt 0:00:27]} 39. Kf2 {[%emt 0:00:25]} Ne7 {[%emt 0:00:35]} 40. Ng1 {[%emt 0:00:42]} Rd5 {[%emt 0:00:31]} 41. Rb2 {[%emt 0:30:44]} b5 {[%emt 0:30:30]} 42. Ne2 {[%emt 0:00:52]} Nf5 {[%emt 0:00:18]} 43. Rb4 {[%emt 0:00:31]} Nd6 {[%emt 0:01:25]} 44. g4 {[%emt 0:00:29]} c5 {[%emt 0:00:28]} 45. dxc5 {[%emt 0:00:25]} Rxc5 {[%emt 0:00:22]} 46. Kg3 {[%emt 0:00:33]} Re5 {[%emt 0:00:46]} 47. Nf4 {[%emt 0:00:37]} Re4 {[%emt 0:01:02]} 48. Rb3 {[%emt 0:00:27]} g5 {[%emt 0:00:32]} 49. Nxh3 {[%emt 0:00:24]} f6 {[%emt 0:00:27]} 50. Nf2 {[%emt 0:00:23]} Ra4 {[%emt 0:00:25]} 51. Rd3 {[%emt 0:00:42]} Nc4 {[%emt 0:00:30]} 52. Ne4 {[%emt 0:00:26]} Ra3 {[%emt 0:01:06]} 53. Nc5 {[%emt 0:00:34]} b4 {[%emt 0:00:27]} 54. Rb3 {[%emt 0:00:30]} Na5 {[%emt 0:00:35]} 55. Rxa3 {[%emt 0:00:36]} bxa3 {[%emt 0:00:21]} 0-1

[Event "Delancey UK Schools 2019 U14"]
[Site "Daventry"]
[Date "2019.09.24"]
[Round "6.4"]
[White "Hosdurga, Chirag"]
[Black "Cox, Toby"]
[Result "0-1"]
[ECO "A97"]
[WhiteElo "1786"]
[BlackElo "1616"]
[Annotator "NA"]
[PlyCount "138"]
[EventDate "2019.09.24"]
[EventCountry "GBR"]
[SourceTitle "playchess.com"]
[Source "ChessBase"]
[SourceQuality "1"]
[TimeControl "40/5400+30:1800+30"]

1. d4 {[%emt 1:10:11]} e6 {[%emt 1:10:11]} 2. Nf3 {[%emt 0:00:21]} f5 {[%emt 0:00:22]} 3. g3 {[%emt 0:00:21]} Nf6 {[%emt 0:00:21]} 4. Bg2 {[%emt 0:00:21]} d6 {[%emt 0:00:21]} 5. O-O {[%emt 0:00:23]} Be7 {[%emt 0:00:21]} 6. c4 {[%emt 0:00:21]} O-O {[%emt 0:00:22]} 7. b4 {[%emt 0:00:21]} Qe8 {[%emt 0:00:26]} 8. Nc3 {[%emt 0:00:29]} Nbd7 {[%emt 0:00:43]} 9. Bb2 {[%emt 0:01:00]} Ne4 {[%emt 0:02:20]} 10. Nd2 {[%emt 0:02:21]} Nxc3 {[%emt 0:00:33]} 11. Bxc3 {[%emt 0:00:23]} Nf6 {[%emt 0:00:24]} 12. e4 {[%emt 0:01:50]} fxe4 {[%emt 0:00:23]} 13. Nxe4 {[%emt 0:00:24]} c6 {[%emt 0:00:54]} 14. Re1 {[%emt 0:01:35]} d5 {[%emt 0:01:04]} 15. Nxf6+ {[%emt 0:02:11]} Rxf6 {[%emt 0:00:23]} 16. c5 {[%emt 0:00:24]} Qf7 {[%emt 0:00:28]} 17. Qe2 {[%emt 0:01:06]} Bd7 {[%emt 0:00:32]} 18. a4 {[%emt 0:00:41]} Rf8 {[%emt 0:00:27]} 19. Rf1 {[%emt 0:00:57]} g5 {[%emt 0:01:28]} 20. Bd2 {[%emt 0:00:48]} Rg6 {[%emt 0:00:22]} 21. Rae1 {[%emt 0:01:08]} Qg7 {[%emt 0:01:17]} 22. Bc3 {[%emt 0:01:40]} Bf6 {[%emt 0:01:30]} 23. Qd3 {[%emt 0:01:36]} h5 {[%emt 0:00:56]} 24. b5 {[%emt 0:01:04]} Re8 {[%emt 0:01:53]} 25. Bh3 {[%emt 0:02:41]} g4 {[%emt 0:00:23]} 26. Bg2 {[%emt 0:00:21]} Rh6 {[%emt 0:02:22]} 27. f3 {[%emt 0:03:06]} gxf3 {[%emt 0:01:09]} 28. Rxf3 {[%emt 0:00:35]} e5 {[%emt 0:01:24]} 29. dxe5 {[%emt 0:01:06]} Bxe5 {[%emt 0:00:22]} 30. Rfe3 {[%emt 0:02:33]} d4 {[%emt 0:00:27]} 31. Rxe5 {[%emt 0:02:27]} Rxe5 {[%emt 0:00:24]} 32. Rxe5 {[%emt 0:00:22]} Qxe5 {[%emt 0:00:26]} 33. Bxd4 {[%emt 0:00:21]} Qe1+ {[%emt 0:02:47]} 34. Qf1 {[%emt 0:00:56]} Qxf1+ {[%emt 0:00:28]} 35. Bxf1 {[%emt 0:00:22]} Kf7 {[%emt 0:01:35]} 36. b6 {[%emt 0:00:44]} axb6 {[%emt 0:00:32]} 37. cxb6 {[%emt 0:00:25]} Rd6 {[%emt 0:00:43]} 38. Be5 {[%emt 0:00:36]} Rd1 {[%emt 0:00:27]} 39. Kf2 {[%emt 0:00:35]} Rc1 {[%emt 0:01:56]} 40. Bd3 {[%emt 0:00:36]} Rc5 {[%emt 0:01:07]} 41. Bd4 {[%emt 0:30:30]} Ra5 {[%emt 0:30:34]} 42. Bc2 {[%emt 0:00:30]} Ra6 {[%emt 0:01:30]} 43. Bc5 {[%emt 0:00:33]} Be6 {[%emt 0:00:32]} 44. Ke3 {[%emt 0:00:24]} Bg4 {[%emt 0:01:16]} 45. Kf4 {[%emt 0:00:24]} Ra5 {[%emt 0:00:39]} 46. Bd4 {[%emt 0:00:38]} Ke6 {[%emt 0:00:57]} 47. Bb3+ {[%emt 0:00:30]} Kd6 {[%emt 0:00:28]} 48. Ke4 {[%emt 0:00:26]} Ra6 {[%emt 0:00:45]} 49. Be5+ {[%emt 0:00:31]} Kc5 {[%emt 0:00:37]} 50. Bc7 {[%emt 0:00:27]} Kb4 {[%emt 0:00:24]} 51. Bc2 {[%emt 0:00:43]} Ra5 {[%emt 0:00:27]} 52. Kf4 {[%emt 0:00:29]} c5 {[%emt 0:00:31]} 53. Be4 {[%emt 0:00:25]} Bc8 {[%emt 0:00:44]} 54. Bc2 {[%emt 0:00:32]} c4 {[%emt 0:00:28]} 55. Ke3 {[%emt 0:00:26]} Kc3 {[%emt 0:00:00]} 56. Bd1 {[%emt 0:00:26]} Kb2 {[%emt 0:00:03]} 57. Bd8 {[%emt 0:00:36]} Rd5 {[%emt 0:00:59]} 58. Bf6+ {[%emt 0:00:25]} c3 {[%emt 0:00:24]} 59. Bf3 {[%emt 0:00:26]} Ra5 {[%emt 0:00:34]} 60. Kd3 {[%emt 0:00:33]} Rc5 {[%emt 0:01:16]} 61. Bd4 {[%emt 0:00:22]} Bf5+ {[%emt 0:02:05]} 62. Ke2 {[%emt 0:00:21]} Rc8 {[%emt 0:00:46]} 63. Bxb7 {[%emt 0:00:23]} Rb8 {[%emt 0:00:28]} 64. Bf3 {[%emt 0:00:35]} Kb3 {[%emt 0:00:37]} 65. a5 {[%emt 0:00:24]} c2 {[%emt 0:00:23]} 66. Be3 {[%emt 0:00:21]} Re8 {[%emt 0:00:27]} 67. Bd5+ {[%emt 0:00:28]} Kb2 {[%emt 0:00:26]} 68. b7 {[%emt 0:00:32]} Rxe3+ {[%emt 0:00:27]} 69. Kf2 {[%emt 0:00:30]} Re8 {[%emt 0:00:30]} 0-1

[Event "Delancey UK Schools 2019 U14"]
[Site "Daventry"]
[Date "2019.09.24"]
[Round "6.5"]
[White "Sheikh, Samia Zannat"]
[Black "Bansal, Saahil"]
[Result "1-0"]
[ECO "E13"]
[WhiteElo "1512"]
[BlackElo "1655"]
[Annotator "NA"]
[PlyCount "145"]
[EventDate "2019.09.24"]
[EventCountry "GBR"]
[SourceTitle "playchess.com"]
[Source "ChessBase"]
[SourceQuality "1"]
[TimeControl "40/5400+30:1800+30"]

1. d4 {[%emt 1:10:11]} Nf6 {[%emt 1:10:12]} 2. c4 {[%emt 0:00:21]} e6 {[%emt 0:00:20]} 3. Nf3 {[%emt 0:00:23]} b6 {[%emt 0:00:23]} 4. Nc3 {[%emt 0:00:24]} Bb4 {[%emt 0:00:22]} 5. Bg5 {[%emt 0:00:22]} h6 {[%emt 0:00:25]} 6. Bh4 {[%emt 0:00:23]} Bb7 {[%emt 0:00:28]} 7. e3 {[%emt 0:00:24]} O-O {[%emt 0:00:33]} 8. Be2 {[%emt 0:00:21]} d6 {[%emt 0:00:26]} 9. O-O {[%emt 0:00:27]} Bxc3 10. bxc3 {[%emt 0:00:22]} Nbd7 {[%emt 0:00:46]} 11. Qb3 {[%emt 0:00:48]} Re8 {[%emt 0:00:32]} 12. Rfd1 {[%emt 0:00:46]} Qe7 {[%emt 0:00:48]} 13. h3 {[%emt 0:01:15]} Nf8 {[%emt 0:00:25]} 14. Bg3 {[%emt 0:01:03]} Ng6 {[%emt 0:00:53]} 15. Nh4 {[%emt 0:00:46]} Nf8 {[%emt 0:04:11]} 16. d5 {[%emt 0:01:37]} e5 {[%emt 0:00:32]} 17. Nf5 {[%emt 0:01:09]} Qd7 {[%emt 0:00:22]} 18. Bg4 {[%emt 0:01:16]} Nxg4 {[%emt 0:01:03]} 19. hxg4 {[%emt 0:00:22]} Ng6 {[%emt 0:01:12]} 20. Qc2 {[%emt 0:00:54]} Ba6 {[%emt 0:01:15]} 21. Qb3 {[%emt 0:01:07]} Ne7 {[%emt 0:01:05]} 22. e4 {[%emt 0:01:29]} Nxf5 {[%emt 0:00:28]} 23. gxf5 {[%emt 0:00:27]} Qe7 {[%emt 0:00:46]} 24. f3 {[%emt 0:00:55]} Qg5 {[%emt 0:00:44]} 25. Kf2 {[%emt 0:00:30]} Rab8 {[%emt 0:02:01]} 26. a4 {[%emt 0:00:31]} h5 {[%emt 0:00:45]} 27. Qa2 {[%emt 0:01:31]} h4 {[%emt 0:02:50]} 28. Bh2 {[%emt 0:00:23]} Kh7 {[%emt 0:00:23]} 29. Rg1 {[%emt 0:02:03]} Rh8 {[%emt 0:01:41]} 30. g3 {[%emt 0:00:45]} h3 {[%emt 0:00:50]} 31. f4 {[%emt 0:00:57]} Qg4 {[%emt 0:00:55]} 32. fxe5 {[%emt 0:01:41]} Qxe4 {[%emt 0:00:33]} 33. g4 {[%emt 0:01:51]} dxe5 {[%emt 0:01:57]} 34. Rae1 {[%emt 0:01:29]} Qd3 {[%emt 0:01:05]} 35. Re3 {[%emt 0:00:57]} Qxc4 {[%emt 0:01:07]} 36. Qc2 {[%emt 0:01:05]} Qxd5 {[%emt 0:01:18]} 37. Rxe5 {[%emt 0:00:27]} Qd3 {[%emt 0:00:58]} 38. Qxd3 {[%emt 0:00:49]} Bxd3 {[%emt 0:00:25]} 39. Re7 {[%emt 0:00:21]} Bc4 {[%emt 0:00:38]} 40. Rxc7 {[%emt 0:00:24]} Rbc8 {[%emt 0:00:26]} 41. Rxa7 {[%emt 0:30:24]} Bd5 {[%emt 0:30:36]} 42. Rc1 {[%emt 0:00:33]} Ra8 {[%emt 0:00:42]} 43. Rd7 {[%emt 0:01:18]} Bc4 {[%emt 0:00:57]} 44. Rd4 {[%emt 0:00:45]} Rxa4 {[%emt 0:00:27]} 45. Kg3 {[%emt 0:00:37]} b5 {[%emt 0:01:56]} 46. Kxh3 {[%emt 0:00:28]} Ra2 {[%emt 0:00:22]} 47. Bf4 {[%emt 0:00:39]} g6 {[%emt 0:00:48]} 48. Kg3 {[%emt 0:00:43]} gxf5 {[%emt 0:00:25]} 49. Rh1+ {[%emt 0:00:25]} Kg7 {[%emt 0:00:34]} 50. Be5+ {[%emt 0:00:24]} f6 {[%emt 0:00:21]} 51. Bxf6+ {[%emt 0:00:38]} Kxf6 {[%emt 0:00:22]} 52. Rxh8 {[%emt 0:00:22]} Rc2 {[%emt 0:00:22]} 53. gxf5 {[%emt 0:01:06]} Rxc3+ {[%emt 0:00:21]} 54. Kf4 {[%emt 0:00:24]} Rc1 {[%emt 0:00:28]} 55. Rh6+ {[%emt 0:00:40]} Kg7 {[%emt 0:00:21]} 56. Rg6+ {[%emt 0:00:21]} Kf7 {[%emt 0:00:24]} 57. Rd7+ {[%emt 0:00:28]} Ke8 {[%emt 0:00:27]} 58. Ra7 {[%emt 0:00:33]} Rf1+ {[%emt 0:00:22]} 59. Ke5 {[%emt 0:00:25]} Re1+ {[%emt 0:00:25]} 60. Kf6 {[%emt 0:00:25]} Rd1 {[%emt 0:00:22]} 61. Ra8+ {[%emt 0:00:53]} Kd7 {[%emt 0:00:22]} 62. Rg7+ {[%emt 0:00:23]} Kc6 {[%emt 0:00:21]} 63. Rc8+ {[%emt 0:00:25]} Kb6 {[%emt 0:00:21]} 64. Ke7 {[%emt 0:00:35]} Re1+ {[%emt 0:00:21]} 65. Kf8 {[%emt 0:00:28]} Rf1 {[%emt 0:00:27]} 66. Rg6+ {[%emt 0:00:36]} Ka5 {[%emt 0:00:23]} 67. f6 {[%emt 0:00:28]} b4 {[%emt 0:00:40]} 68. Rxc4 {[%emt 0:00:24]} b3 {[%emt 0:00:21]} 69. Rc8 {[%emt 0:00:57]} Ka6 {[%emt 0:01:35]} 70. Rb8 {[%emt 0:00:30]} Rf3 {[%emt 0:00:21]} 71. f7+ {[%emt 0:00:24]} Ka7 {[%emt 0:00:24]} 72. Rb4 {[%emt 0:00:23]} Ka8 {[%emt 0:00:25]} 73. Ra6# {[%emt 0:00:22]} 1-0

[Event "Delancey UK Schools 2019 U14"]
[Site "Daventry"]
[Date "2019.09.24"]
[Round "6.6"]
[White "Sheikh, Anum"]
[Black "Volovich, Julia"]
[Result "1/2-1/2"]
[ECO "C00"]
[WhiteElo "1755"]
[BlackElo "1743"]
[Annotator "NA"]
[PlyCount "181"]
[EventDate "2019.09.24"]
[EventCountry "GBR"]
[SourceTitle "playchess.com"]
[Source "ChessBase"]
[SourceQuality "1"]
[TimeControl "40/5400+30:1800+30"]

1. e4 {[%emt 1:10:11]} e6 {[%emt 1:10:12]} 2. Nf3 {[%emt 0:00:22]} d5 {[%emt 0:00:25]} 3. e5 {[%emt 0:00:21]} c5 {[%emt 0:00:24]} 4. b4 {[%emt 0:00:21]} cxb4 {[%emt 0:00:27]} 5. d4 {[%emt 0:00:21]} Nc6 {[%emt 0:00:33]} 6. a3 {[%emt 0:00:23]} bxa3 {[%emt 0:00:27]} 7. c3 {[%emt 0:00:22]} Qb6 {[%emt 0:01:18]} 8. Bd3 {[%emt 0:00:32]} Bd7 {[%emt 0:01:16]} 9. Ng5 {[%emt 0:01:30]} g6 {[%emt 0:04:22]} 10. Qf3 {[%emt 0:00:36]} Nh6 {[%emt 0:01:57]} 11. Nxa3 {[%emt 0:01:42]} Nxd4 12. cxd4 {[%emt 0:01:10]} Qxd4 {[%emt 0:04:48]} 13. Ra2 {[%emt 0:01:21]} Qxe5+ {[%emt 0:00:40]} 14. Qe3 {[%emt 0:00:21]} Bb4+ {[%emt 0:01:14]} 15. Bd2 {[%emt 0:00:38]} Qxe3+ {[%emt 0:02:20]} 16. fxe3 {[%emt 0:00:26]} Bxd2+ {[%emt 0:02:00]} 17. Kxd2 {[%emt 0:00:25]} a6 {[%emt 0:00:51]} 18. Rb1 {[%emt 0:01:23]} Bc6 {[%emt 0:01:10]} 19. Nf3 {[%emt 0:01:42]} Ke7 {[%emt 0:00:58]} 20. Rb6 {[%emt 0:01:13]} Rhc8 {[%emt 0:01:38]} 21. Ne5 {[%emt 0:01:15]} Kd6 {[%emt 0:01:27]} 22. Nxc6 {[%emt 0:00:23]} bxc6 {[%emt 0:00:39]} 23. Bxa6 {[%emt 0:00:36]} Rcb8 {[%emt 0:01:31]} 24. Bb7 {[%emt 0:01:13]} Kc7 {[%emt 0:00:25]} 25. Bxa8 {[%emt 0:01:38]} Rxb6 {[%emt 0:00:25]} 26. Nc2 {[%emt 0:00:29]} Kb8 {[%emt 0:00:47]} 27. Nd4 {[%emt 0:00:27]} c5 {[%emt 0:00:27]} 28. Nc2 {[%emt 0:02:51]} Nf5 {[%emt 0:00:26]} 29. e4 {[%emt 0:00:25]} dxe4 {[%emt 0:00:48]} 30. Bxe4 {[%emt 0:00:25]} Rd6+ {[%emt 0:00:21]} 31. Kc3 {[%emt 0:00:40]} Nd4 {[%emt 0:00:50]} 32. Ra8+ {[%emt 0:00:30]} Kc7 {[%emt 0:00:21]} 33. Ra7+ {[%emt 0:00:22]} Kb6 {[%emt 0:00:34]} 34. Rxf7 {[%emt 0:00:26]} Nb5+ {[%emt 0:00:39]} 35. Kc4 {[%emt 0:00:44]} Nd4 {[%emt 0:00:37]} 36. Rb7+ {[%emt 0:00:29]} Ka6 {[%emt 0:00:23]} 37. Rxh7 {[%emt 0:00:29]} Nxc2 {[%emt 0:00:24]} 38. Bxc2 {[%emt 0:00:21]} Rd2 {[%emt 0:00:25]} 39. Bxg6 {[%emt 0:00:43]} Rxg2 {[%emt 0:00:22]} 40. Bf7 {[%emt 0:00:28]} Kb6 {[%emt 0:00:45]} 41. Bxe6 {[%emt 0:30:25]} Rc2+ {[%emt 0:30:21]} 42. Kb3 {[%emt 0:00:27]} Re2 {[%emt 0:00:27]} 43. Rh6 {[%emt 0:00:32]} Kc7 {[%emt 0:00:25]} 44. Kc4 {[%emt 0:00:37]} Rc2+ {[%emt 0:00:22]} 45. Kb5 {[%emt 0:00:28]} Kd8 {[%emt 0:00:32]} 46. Bc4 {[%emt 0:00:26]} Ke7 {[%emt 0:00:26]} 47. Kxc5 {[%emt 0:00:22]} Kf8 {[%emt 0:00:23]} 48. h4 {[%emt 0:00:36]} Kg7 {[%emt 0:00:21]} 49. Rd6 {[%emt 0:00:29]} Rh2 {[%emt 0:00:24]} 50. Rd4 {[%emt 0:00:30]} Kg6 {[%emt 0:00:40]} 51. Be6 {[%emt 0:00:45]} Re2 {[%emt 0:00:55]} 52. Bg4 {[%emt 0:00:28]} Rh2 {[%emt 0:00:25]} 53. h5+ {[%emt 0:00:22]} Kg5 {[%emt 0:00:30]} 54. Bd1 {[%emt 0:00:23]} Kh6 {[%emt 0:00:33]} 55. Rd5 {[%emt 0:00:26]} Rg2 {[%emt 0:00:24]} 56. Rd6+ {[%emt 0:00:43]} Kh7 {[%emt 0:00:32]} 57. Bf3 {[%emt 0:00:26]} Rg5+ {[%emt 0:00:24]} 58. Kd4 {[%emt 0:00:27]} Rg3 {[%emt 0:00:29]} 59. Be4+ {[%emt 0:00:27]} Kh8 {[%emt 0:00:46]} 60. h6 {[%emt 0:00:24]} Rg8 {[%emt 0:00:34]} 61. Rd7 {[%emt 0:00:37]} Re8 {[%emt 0:00:40]} 62. Kd5 {[%emt 0:00:54]} Kg8 {[%emt 0:00:35]} 63. Bg6 {[%emt 0:00:36]} Ra8 {[%emt 0:00:33]} 64. Rd6 {[%emt 0:01:47]} Ra5+ {[%emt 0:00:23]} 65. Ke6 {[%emt 0:00:25]} Ra8 {[%emt 0:00:24]} 66. Kf6 {[%emt 0:00:44]} Rf8+ {[%emt 0:00:24]} 67. Ke7 {[%emt 0:00:29]} Ra8 {[%emt 0:00:23]} 68. Be4 {[%emt 0:00:44]} Ra7+ {[%emt 0:00:23]} 69. Kf6 {[%emt 0:00:27]} Rf7+ {[%emt 0:00:21]} 70. Kg6 {[%emt 0:00:31]} Rf8 {[%emt 0:00:37]} 71. Bd5+ {[%emt 0:00:27]} Kh8 {[%emt 0:00:21]} 72. Bf7 {[%emt 0:01:07]} Rb8 {[%emt 0:00:30]} 73. Kh5 {[%emt 0:01:43]} Rb5+ {[%emt 0:00:24]} 74. Bd5 {[%emt 0:00:43]} Rb8 {[%emt 0:00:21]} 75. Be4 {[%emt 0:00:53]} Rb5+ {[%emt 0:00:25]} 76. Kg6 {[%emt 0:00:23]} Rb8 {[%emt 0:00:23]} 77. Bf5 {[%emt 0:00:59]} Rg8+ {[%emt 0:00:29]} 78. Kh5 {[%emt 0:00:47]} Rb8 {[%emt 0:00:25]} 79. Bd3 {[%emt 0:01:07]} Ra8 {[%emt 0:00:31]} 80. Kg6 {[%emt 0:01:48]} Rg8+ {[%emt 0:00:21]} 81. Kf7 {[%emt 0:00:21]} Rf8+ {[%emt 0:00:34]} 82. Ke7 {[%emt 0:00:37]} Ra8 {[%emt 0:00:26]} 83. Rd7 {[%emt 0:00:56]} Rb8 {[%emt 0:00:29]} 84. Rc7 {[%emt 0:01:10]} Ra8 {[%emt 0:00:26]} 85. Ke6 {[%emt 0:01:38]} Re8+ {[%emt 0:00:21]} 86. Kd7 {[%emt 0:00:33]} Rb8 {[%emt 0:00:28]} 87. Kc6 {[%emt 0:00:31]} Rd8 {[%emt 0:00:26]} 88. Bc2 {[%emt 0:00:39]} Rb8 {[%emt 0:00:26]} 89. Rh7+ {[%emt 0:00:36]} Kg8 {[%emt 0:00:24]} 90. Rg7+ {[%emt 0:00:27]} Kh8 {[%emt 0:00:46]} 91. Bd3 {[%emt 0:00:42]} 1/2-1/2

[Event "Delancey UK Schools 2019 U14"]
[Site "Daventry"]
[Date "2019.09.24"]
[Round "6.7"]
[White "Weersing, Abigail Riis"]
[Black "Akeya-Price, Robert"]
[Result "1/2-1/2"]
[ECO "E11"]
[WhiteElo "1734"]
[BlackElo "1892"]
[Annotator "NA"]
[PlyCount "99"]
[EventDate "2019.09.24"]
[EventCountry "GBR"]
[SourceTitle "playchess.com"]
[Source "ChessBase"]
[SourceQuality "1"]
[TimeControl "40/5400+30:1800+30"]

1. d4 {[%emt 1:10:20]} Nf6 {[%emt 1:10:20]} 2. c4 {[%emt 0:00:30]} e6 {[%emt 0:00:30]} 3. Nf3 {[%emt 0:00:30]} Bb4+ {[%emt 0:00:30]} 4. Bd2 {[%emt 0:00:30]} Bxd2+ 5. Nbxd2 {[%emt 0:00:30]} d5 {[%emt 0:01:00]} 6. e3 {[%emt 0:00:30]} c6 {[%emt 0:00:30]} 7. Bd3 {[%emt 0:00:30]} Nbd7 {[%emt 0:00:26]} 8. O-O {[%emt 0:00:25]} O-O {[%emt 0:00:25]} 9. Qc2 {[%emt 0:00:41]} dxc4 10. Nxc4 {[%emt 0:01:17]} c5 {[%emt 0:02:41]} 11. Rfd1 {[%emt 0:02:03]} Qe7 {[%emt 0:00:34]} 12. e4 {[%emt 0:01:50]} h6 {[%emt 0:01:15]} 13. d5 {[%emt 0:02:07]} exd5 {[%emt 0:02:03]} 14. exd5 {[%emt 0:01:17]} b5 {[%emt 0:02:01]} 15. Ne3 {[%emt 0:02:22]} c4 {[%emt 0:00:36]} 16. Bf5 {[%emt 0:02:42]} Ne5 {[%emt 0:01:45]} 17. Nd4 {[%emt 0:01:08]} Bxf5 {[%emt 0:01:13]} 18. Ndxf5 {[%emt 0:01:18]} Qd7 {[%emt 0:01:13]} 19. d6 {[%emt 0:01:32]} Kh8 {[%emt 0:04:50]} 20. Qc3 {[%emt 0:03:22]} Neg4 {[%emt 0:01:28]} 21. Nxg4 {[%emt 0:01:55]} Qxf5 {[%emt 0:00:27]} 22. Nxf6 {[%emt 0:00:30]} gxf6 {[%emt 0:00:46]} 23. Qe3 {[%emt 0:01:06]} Qg5 {[%emt 0:00:32]} 24. Qf3 {[%emt 0:00:48]} Qe5 {[%emt 0:01:00]} 25. Rab1 {[%emt 0:00:53]} Rfe8 {[%emt 0:00:57]} 26. d7 {[%emt 0:00:58]} Rg8 {[%emt 0:01:21]} 27. Rd5 {[%emt 0:00:48]} Qe6 {[%emt 0:00:30]} 28. Rbd1 {[%emt 0:01:01]} Rad8 {[%emt 0:01:30]} 29. Rd6 {[%emt 0:00:36]} Qe5 {[%emt 0:01:37]} 30. Qxf6+ {[%emt 0:00:33]} Qxf6 {[%emt 0:00:23]} 31. Rxf6 {[%emt 0:00:20]} Kg7 {[%emt 0:00:22]} 32. Rf5 {[%emt 0:00:28]} Rb8 {[%emt 0:00:40]} 33. Rfd5 {[%emt 0:00:22]} Rgd8 {[%emt 0:00:24]} 34. R1d4 {[%emt 0:00:33]} Rb6 {[%emt 0:00:57]} 35. Kf1 {[%emt 0:00:29]} Kf6 {[%emt 0:01:00]} 36. f4 {[%emt 0:00:43]} a6 {[%emt 0:00:38]} 37. Rd6+ {[%emt 0:00:22]} Rxd6 {[%emt 0:00:22]} 38. Rxd6+ {[%emt 0:00:21]} Ke7 {[%emt 0:00:21]} 39. Rxh6 {[%emt 0:00:26]} Rxd7 {[%emt 0:00:35]} 40. Rxa6 {[%emt 0:00:26]} Rd2 {[%emt 0:00:21]} 41. b4 {[%emt 0:31:03]} c3 {[%emt 0:30:47]} 42. Ke1 {[%emt 0:00:41]} Rxg2 {[%emt 0:00:29]} 43. Rc6 {[%emt 0:00:24]} c2 {[%emt 0:00:22]} 44. h4 {[%emt 0:00:25]} Kd7 {[%emt 0:01:25]} 45. Rc5 {[%emt 0:00:21]} Ke6 {[%emt 0:00:34]} 46. h5 {[%emt 0:00:29]} Kf6 {[%emt 0:00:29]} 47. a3 {[%emt 0:00:28]} Rh2 {[%emt 0:00:37]} 48. h6 {[%emt 0:00:36]} Kg6 {[%emt 0:00:38]} 49. Rc6+ {[%emt 0:00:22]} Kh7 {[%emt 0:00:21]} 50. f5 {[%emt 0:00:47]} 1/2-1/2

[Event "Delancey UK Schools 2019 U14"]
[Site "Daventry"]
[Date "2019.09.24"]
[Round "6.8"]
[White "Saunders, Aron"]
[Black "Kan, Toby"]
[Result "0-1"]
[ECO "B22"]
[WhiteElo "1428"]
[BlackElo "1714"]
[Annotator "NA"]
[PlyCount "88"]
[EventDate "2019.09.24"]
[EventCountry "GBR"]
[SourceTitle "playchess.com"]
[Source "ChessBase"]
[SourceQuality "1"]
[TimeControl "40/5400+30:1800+30"]

1. e4 {[%emt 1:10:11]} c5 {[%emt 1:10:10]} 2. c3 {[%emt 0:00:21]} Nf6 {[%emt 0:00:23]} 3. e5 {[%emt 0:00:22]} Nd5 {[%emt 0:00:21]} 4. d4 {[%emt 0:00:21]} cxd4 {[%emt 0:00:22]} 5. cxd4 {[%emt 0:00:21]} d6 {[%emt 0:00:42]} 6. Nf3 {[%emt 0:00:27]} Nc6 {[%emt 0:00:28]} 7. Bc4 {[%emt 0:00:22]} Nb6 {[%emt 0:00:21]} 8. Bb3 {[%emt 0:00:26]} e6 {[%emt 0:01:02]} 9. O-O {[%emt 0:00:36]} Be7 {[%emt 0:00:31]} 10. Nc3 {[%emt 0:00:35]} O-O {[%emt 0:00:32]} 11. Qe2 {[%emt 0:00:54]} Nd7 {[%emt 0:02:13]} 12. Nb5 {[%emt 0:03:35]} Nb6 {[%emt 0:04:28]} 13. Bf4 {[%emt 0:01:43]} d5 {[%emt 0:00:35]} 14. Rfd1 {[%emt 0:01:23]} a6 {[%emt 0:01:09]} 15. Nc3 {[%emt 0:00:23]} Re8 {[%emt 0:00:32]} 16. Rac1 {[%emt 0:01:09]} Nd7 {[%emt 0:01:04]} 17. Bg3 {[%emt 0:01:43]} Nf8 {[%emt 0:00:28]} 18. Na4 {[%emt 0:01:34]} Na5 {[%emt 0:02:38]} 19. Nd2 {[%emt 0:02:58]} Bd7 {[%emt 0:01:29]} 20. Nc5 {[%emt 0:00:59]} Bb5 {[%emt 0:00:55]} 21. Qe3 {[%emt 0:01:24]} Rc8 {[%emt 0:02:25]} 22. Na4 {[%emt 0:02:02]} Ng6 {[%emt 0:04:09]} 23. Nc3 {[%emt 0:00:39]} Nxb3 {[%emt 0:01:00]} 24. Nxb3 {[%emt 0:00:28]} Bc4 {[%emt 0:00:29]} 25. Nd2 {[%emt 0:00:58]} b5 {[%emt 0:01:23]} 26. b3 {[%emt 0:01:08]} b4 {[%emt 0:00:21]} 27. bxc4 {[%emt 0:00:40]} bxc3 {[%emt 0:00:23]} 28. Rxc3 {[%emt 0:00:57]} Bb4 {[%emt 0:00:36]} 29. Rcc1 {[%emt 0:00:45]} Bxd2 {[%emt 0:00:32]} 30. Rxd2 {[%emt 0:00:24]} dxc4 {[%emt 0:00:31]} 31. Rdc2 {[%emt 0:00:38]} Qa5 {[%emt 0:00:49]} 32. Qc3 {[%emt 0:02:19]} Qd5 {[%emt 0:00:43]} 33. f3 {[%emt 0:01:02]} Red8 {[%emt 0:00:33]} 34. Rd2 {[%emt 0:00:54]} Qb5 {[%emt 0:00:41]} 35. Rb2 {[%emt 0:00:45]} Qd5 {[%emt 0:00:32]} 36. Rd2 {[%emt 0:00:37]} Rd7 {[%emt 0:00:47]} 37. Qb4 {[%emt 0:00:56]} Qb5 {[%emt 0:00:38]} 38. Qc3 {[%emt 0:00:36]} Ne7 {[%emt 0:01:02]} 39. Rb2 {[%emt 0:00:26]} Qd5 {[%emt 0:00:22]} 40. Bf2 {[%emt 0:00:26]} Ng6 {[%emt 0:00:31]} 41. g3 {[%emt 0:30:26]} Ne7 {[%emt 0:30:32]} 42. Rb4 {[%emt 0:00:34]} Rdc7 {[%emt 0:00:30]} 43. Kf1 {[%emt 0:00:43]} Qa5 {[%emt 0:00:37]} 44. Rc2 {[%emt 0:00:42]} Nd5 {[%emt 0:00:24]} 0-1